fUSD/lending_fUSD_20241125
["ID","MTS","AMOUNT","RATE_DAILY","PERIOD"]
[343294734,1732549832255,-17745.98,0.00037572,2]
[343294735,1732549832264,-220.23,0.00037625,2]
[343294736,1732549832274,-159.51522539,0.0003781,2]
[343294741,1732549832469,-1906.47477461,0.0003781,2]
[343294744,1732549832483,-1600.0,0.0003783,2]
[343294746,1732549832493,-1226.0,0.0003783,2]
[343294748,1732549832503,-8098.99250179,0.00037831,2]
[343294750,1732549832513,-912.25,0.00038094,2]
[343294752,1732549832523,-150.0,0.00038136,2]
[343294754,1732549832533,-1500.0,0.00038161,120]
[343294755,1732549832542,-168.28,0.00038186,2]
[343294758,1732549832552,-500.0,0.00038374,2]
[343294759,1732549832561,-1000.0,0.00038696,2]
[343294762,1732549832571,-264.0998,0.00038705,2]
[343294764,1732549832581,-3846.155,0.00038705,2]
[343294766,1732549832590,-231.26,0.00038939,3]
[343294768,1732549832600,-9565.43405576,0.00038949,2]
[343294771,1732549832625,-14334.56594424,0.00038949,2]
[343294773,1732549832635,-11010.97398688,0.00039,2]
[343294775,1732549832645,-250.0,0.00039082,2]
[343294777,1732549832654,-203.609,0.00039106,2]
[343294779,1732549832664,-9594.99,0.00039157,2]
[343294781,1732549832674,-200.0,0.00039187,2]
[343294783,1732549832685,-320.23575,0.00039358,2]
[343294785,1732549832698,-1000.0,0.00039657,2]
[343294787,1732549832709,-4085.18630314,0.00039664,2]
[343294789,1732549832719,-326.22,0.00039668,120]
[343294791,1732549832728,-152.0,0.00039764,3]
[343294793,1732549832738,-22484.33375816,0.000398,2]
[343294795,1732549832749,-166.67,0.00039825,2]
[343294797,1732549832759,-2385.612,0.00039825,2]
[343294799,1732549832768,-289.36,0.00039891,120]
[343294801,1732549832779,-4973.72741104,0.000399,2]
[343294803,1732549832789,-388.79,0.00039938,2]
[343294805,1732549832798,-500.0,0.0004,30]
[343294808,1732549832808,-500.0,0.0004,30]
[343294810,1732549832818,-500.0,0.0004,30]
[343294812,1732549832828,-546.35021561,0.0004,30]
[343294814,1732549832837,-799.99,0.0004,120]
[343294815,1732549832846,-6051.4365,0.0004,2]
[343294817,1732549832856,-1600.0,0.0004,2]
[343294819,1732549832865,-412.0569809,0.00040023,2]
[343294822,1732549832875,-500.0,0.00040025,5]
[343294824,1732549832884,-500.0,0.00040025,5]
[343294826,1732549832894,-500.0,0.00040025,2]
[343294827,1732549832904,-151.0,0.00040027,120]
[343294830,1732549832914,-2065.99,0.00040074,2]
[343294832,1732549832928,-412.0569809,0.00040288,2]
[343294834,1732549832937,-4085.18630309,0.00040421,15]
[343294836,1732549832951,-2555.685,0.0004054,58]
[343294838,1732549832962,-169.76,0.0004054,58]
[343294840,1732549832971,-22484.33375807,0.00040542,15]
[343294842,1732549832981,-836.39289048,0.00040573,2]
[343294844,1732549832990,-412.0569809,0.00040777,2]
[343294846,1732549833001,-1000.0,0.000408,2]
[343294848,1732549833012,-2500.0,0.000408,2]
[343294850,1732549833022,-1500.7,0.00040856,2]
[343294852,1732549833035,-970.35,0.00040856,2]
[343294854,1732549833046,-159.98701408,0.0004086,28]
[343294856,1732549833056,-392.5502,0.000409,2]
[343294858,1732549833067,-668.4291,0.000409,2]
[343294860,1732549833078,-11876.92674617,0.000409,2]
[343294862,1732549833091,-1753.01820368,0.000409,2]
[343294866,1732549833115,-5226.11085015,0.000409,2]
[343294868,1732549833125,-317.36552016,0.000409,2]
[343294870,1732549833135,-4070.62362968,0.00040958,10]
[343294872,1732549833148,-397.44477173,0.00040958,10]
[343294875,1732549833168,-15426.79389908,0.00040958,10]
[343294877,1732549833178,-33103.57084633,0.00040958,10]
[343294879,1732549833189,-500.0,0.00040959,31]
[343294881,1732549833207,-154.25487937,0.00040959,31]
[343294883,1732549833219,-172.86120341,0.00040959,31]
[343294885,1732549833229,-167.04,0.0004096,2]
[343294887,1732549833240,-639.14,0.0004096,2]
[343294889,1732549833250,-61507.16,0.0004096,2]
[343294891,1732549833261,-250.0,0.0004096,2]
[343294893,1732549833271,-164.52,0.0004096,2]
[343294895,1732549833280,-156.27,0.0004096,2]
[343294897,1732549833291,-415.55,0.0004096,2]
[343294899,1732549833301,-300.0,0.0004096,2]
[343294901,1732549833311,-156.27,0.00040977,2]
[343294903,1732549833322,-156.27,0.00040994,2]
[343294905,1732549833331,-1120.2311025,0.00040999,30]
[343294907,1732549833342,-795.0672,0.00040999,2]
[343294909,1732549833352,-352.20550353,0.00040999,120]
[343294911,1732549833362,-40641.7030701,0.00041,2]
[343294914,1732549833375,-59014.00031013,0.00041,2]
[343294916,1732549833386,-344.29661977,0.00041,2]
[343294918,1732549833397,-181.30712422,0.00041,30]
[343294920,1732549833406,-2268.0,0.00041,117]
[343294922,1732549833415,-156.27,0.00041011,2]
[343294924,1732549833425,-156.27,0.00041028,2]
[343294926,1732549833436,-156.27,0.00041045,2]
[343294928,1732549833450,-159.71,0.00041048,2]
[343294930,1732549833460,-156.27,0.00041062,2]
[343294932,1732549833470,-412.0569809,0.00041067,2]
[343294934,1732549833480,-156.27,0.00041079,2]
[343294936,1732549833490,-150.57,0.00041096,2]
[343294938,1732549833500,-182.9951716,0.00041096,2]
[343294940,1732549833511,-478.58,0.00041096,2]
[343294942,1732549833521,-248.0,0.00041096,2]
[343294944,1732549833531,-200.80673099,0.00041096,60]
[343294946,1732549833540,-282.79782143,0.00041096,31]
[343294948,1732549833550,-156.27,0.00041096,2]
[343294950,1732549833560,-156.27,0.00041113,2]
[343294952,1732549833570,-156.27,0.0004113,2]
[343294954,1732549833579,-156.27,0.00041147,2]
[343294956,1732549833589,-156.27,0.00041165,2]
[343294958,1732549833599,-412.0569809,0.00041171,2]
[343294960,1732549833608,-4085.18630309,0.00041179,15]
[343294962,1732549833617,-1000.0,0.00041282,2]
[343294964,1732549833627,-8426.8362671,0.00041283,15]
[343295299,1732549837957,-548.44924402,0.00040863,2]
[343295300,1732549837969,-1211.34783922,0.00040863,2]
[343295305,1732549838268,-771.05291676,0.00040863,2]
[343295306,1732549838278,-14057.49749097,0.00041283,15]
[343295307,1732549838288,-161.4,0.00041369,2]
[343295308,1732549838297,-317.36552004,0.00041415,2]
[343295309,1732549838307,-159.98701408,0.00041469,28]
[343295310,1732549838316,-1600.0,0.0004148,2]
[343295311,1732549838325,-161.4,0.00041575,2]
[343295312,1732549838335,-412.0569809,0.0004158,2]
[343295313,1732549838344,-500.0,0.00041625,14]
[343295314,1732549838354,-500.0,0.00041625,14]
[343295315,1732549838363,-500.0,0.00041625,14]
[343295316,1732549838373,-500.0,0.00041625,14]
[343295317,1732549838382,-500.0,0.00041625,14]
[343295318,1732549838391,-500.0,0.00041625,14]
[343295319,1732549838401,-500.0,0.00041625,14]
[343295320,1732549838411,-500.0,0.00041625,14]
[343295321,1732549838421,-500.0,0.00041625,14]
[343295322,1732549838431,-509.97505736,0.00041625,14]
[343295323,1732549838441,-150.0,0.0004163,2]
[343295324,1732549838456,-970.89,0.00041658,30]
[343295325,1732549838466,-970.89,0.00041668,30]
[343295326,1732549838478,-970.89,0.00041678,30]
[343295327,1732549838488,-500.0,0.00041773,10]
[343295328,1732549838497,-506.04853516,0.00041773,10]
[343295329,1732549838507,-298.69571735,0.00041773,10]
[343295330,1732549838516,-5223.48212737,0.00041773,45]
[343295331,1732549838527,-213.45747162,0.0004179,7]
[343295332,1732549838536,-154.1,0.0004179,2]
[343295333,1732549838546,-20000.0,0.000418,4]
[343295334,1732549838556,-100000.0,0.000418,2]
[343295335,1732549838565,-1382.47135989,0.000418,17]
[343295336,1732549838576,-412.0569809,0.00041855,2]
[343295337,1732549838586,-500.0,0.00041873,10]
[343295338,1732549838595,-217.72,0.00041875,2]
[343295339,1732549838604,-146561.4006,0.000419,2]
[343295340,1732549838614,-37966.9985,0.000419,2]
[343295341,1732549838624,-1200.0,0.000419,15]
[343295342,1732549838634,-317.36552004,0.0004193,2]
[343295343,1732549838643,-177.82,0.00041934,2]
[343295344,1732549838654,-4085.18630309,0.00041936,15]
[343295345,1732549838663,-3676.33853481,0.0004196,120]
[343295346,1732549838672,-412.0569809,0.00041964,2]
[343295347,1732549838681,-154.1,0.0004199,2]
[343295348,1732549838691,-100000.0,0.00042,3]
[343295349,1732549838704,-616.0,0.00042,2]
[343295350,1732549838715,-1616.0,0.00042,30]
[343295351,1732549838723,-22484.33375807,0.00042025,15]
[343295352,1732549838733,-150.0,0.0004206,2]
[343295353,1732549838743,-159.98701408,0.00042077,28]
[343295354,1732549838752,-150.0,0.00042133,2]
[343295355,1732549838761,-500.0,0.00042134,120]
[343295356,1732549838771,-500.0,0.00042158,120]
[343295357,1732549838779,-700.0,0.00042235,60]
[343295358,1732549838789,-500.0,0.00042235,60]
[343295359,1732549838798,-800.0,0.00042235,60]
[343295360,1732549838807,-1382.47135989,0.000423,18]
[343295361,1732549838817,-504.76805763,0.00042321,10]
[343295362,1732549838827,-150.0,0.00042321,2]
[343295363,1732549838835,-2065.99,0.00042338,2]
[343295364,1732549838844,-2000.0,0.00042344,120]
[343295365,1732549838853,-150.0,0.00042356,2]
[343295366,1732549838863,-150.0,0.00042363,2]
[343295367,1732549838873,-544.537,0.0004239,30]
[343295369,1732549838882,-2787.26,0.00042394,2]
[343295370,1732549838892,-931.05,0.00042394,2]
[343295372,1732549838901,-172.0075321,0.000424,16]
[343295374,1732549838911,-412.0569809,0.00042406,2]
[343295376,1732549838924,-3676.3385348,0.0004242,120]
[343295378,1732549838934,-1000.0,0.00042421,10]
[343295380,1732549838943,-150.0,0.00042422,2]
[343295381,1732549838956,-317.36552004,0.00042445,2]
[343295382,1732549838966,-150.57,0.00042466,2]
[343295383,1732549838975,-3000.0,0.0004247,14]
[343295384,1732549838984,-289.36,0.00042475,120]
[343295385,1732549838993,-150.0,0.00042477,2]
[343295386,1732549839002,-150.0,0.00042486,2]
[343295387,1732549839012,-1000.0,0.000425,3]
[343295388,1732549839021,-1000.0,0.000425,3]
[343295389,1732549839030,-1000.0,0.000425,3]
[343295391,1732549839039,-1000.0,0.000425,3]
[343295393,1732549839048,-1000.0,0.000425,3]
[343295395,1732549839058,-1000.0,0.000425,3]
[343295397,1732549839067,-1000.0,0.000425,3]
[343295399,1732549839076,-1000.0,0.000425,3]
[343295401,1732549839085,-1000.0,0.000425,3]
[343295403,1732549839094,-1000.0,0.000425,3]
[343295404,1732549839104,-1000.0,0.000425,3]
[343295407,1732549839113,-1000.0,0.000425,3]
[343295409,1732549839123,-1000.0,0.000425,3]
[343295411,1732549839133,-1000.0,0.000425,3]
[343295413,1732549839142,-1000.0,0.000425,3]
[343295415,1732549839152,-1000.0,0.000425,3]
[343295417,1732549839161,-1000.0,0.000425,3]
[343295419,1732549839171,-1000.0,0.000425,3]
[343295421,1732549839180,-1000.0,0.000425,3]
[343295423,1732549839189,-1000.0,0.000425,3]
[343295424,1732549839200,-1000.0,0.000425,3]
[343295426,1732549839210,-1000.0,0.000425,3]
[343295428,1732549839220,-1000.0,0.000425,3]
[343295430,1732549839229,-1000.0,0.000425,3]
[343295432,1732549839239,-1000.0,0.000425,3]
[343295434,1732549839248,-1000.0,0.000425,3]
[343295436,1732549839258,-1000.0,0.000425,3]
[343295438,1732549839268,-1000.0,0.000425,3]
[343295455,1732549839431,-1000.0,0.000425,3]
[343295457,1732549839442,-1000.0,0.000425,3]
[343295460,1732549839458,-1000.0,0.000425,3]
[343295462,1732549839469,-1000.0,0.000425,3]
[343295464,1732549839478,-1000.0,0.000425,3]
[343295465,1732549839488,-1000.0,0.000425,3]
[343295467,1732549839499,-1000.0,0.000425,3]
[343295469,1732549839509,-1000.0,0.000425,3]
[343295471,1732549839518,-1000.0,0.000425,3]
[343295474,1732549839528,-1000.0,0.000425,3]
[343295476,1732549839538,-1000.0,0.000425,3]
[343295478,1732549839547,-1000.0,0.000425,3]
[343295480,1732549839557,-1000.0,0.000425,3]
[343295482,1732549839566,-1000.0,0.000425,3]
[343295484,1732549839575,-1000.0,0.000425,3]
[343295486,1732549839585,-580.0,0.000425,3]
[343295488,1732549839594,-253.43,0.000425,120]
[343295490,1732549839603,-253.43,0.000425,120]
[343295492,1732549839612,-253.43,0.000425,120]
[343295493,1732549839622,-6847.03826178,0.000425,120]
[343295495,1732549839631,-150.0,0.00042537,2]
[343295497,1732549839640,-150.0,0.0004256,2]
[343295500,1732549839650,-150.0,0.00042565,2]
[343295502,1732549839660,-1500.0,0.00042569,7]
[343295504,1732549839669,-77151.07593444,0.0004257,2]
[343295506,1732549839679,-150.0,0.00042572,2]
[343295508,1732549839688,-150.0,0.00042586,2]
[343295510,1732549839700,-150.0,0.00042593,2]
[343295512,1732549839710,-150.0,0.0004265,2]
[343295514,1732549839719,-150.0,0.00042662,2]
[343295516,1732549839728,-150.0,0.00042682,2]
[343295518,1732549839737,-159.98701408,0.00042686,28]
[343295520,1732549839747,-412.0569809,0.00042688,2]
[343295522,1732549839756,-4085.18630309,0.00042693,15]
[343295524,1732549839766,-2400.0,0.000427,15]
[343295526,1732549839775,-200.0,0.00042708,120]
[343295528,1732549839784,-22484.33375807,0.00042767,15]
[343295531,1732549839793,-150.0,0.00042781,2]
[343295534,1732549839803,-700.0,0.00042783,60]
[343295536,1732549839812,-800.0,0.00042783,60]
[343295539,1732549839822,-150.0,0.00042787,2]
[343295541,1732549839831,-1068.83446823,0.00042799,2]
[343295543,1732549839841,-192.56108825,0.000428,17]
[343295545,1732549839850,-4489.005218,0.000428,30]
[343295547,1732549839860,-333.65933532,0.000428,17]
[343295549,1732549839869,-3600.0,0.000428,15]
[343295551,1732549839878,-1382.47135989,0.000428,19]
[343295553,1732549839887,-412.05698092,0.0004281,2]
[343295555,1732549839896,-301.100516,0.00042835,14]
[343295557,1732549839905,-150.0,0.00042845,2]
[343295559,1732549839914,-1500.0,0.00042856,7]
[343295561,1732549839925,-1573.23721121,0.00042859,7]
[343295563,1732549839937,-498.33498097,0.00042873,10]
[343295565,1732549839947,-500.0,0.00042873,10]
[343295567,1732549839957,-3676.3385348,0.0004288,120]
[343295569,1732549839967,-432.22086,0.00042885,7]
[343295571,1732549839976,-154.1,0.00042888,2]
[343295573,1732549839985,-434.06,0.00042888,30]
[343295575,1732549839996,-154.1,0.00042889,2]
[343295577,1732549840006,-154.1,0.00042889,2]
[343295579,1732549840016,-1500.0,0.00042889,7]
[343295581,1732549840026,-500.0,0.0004289,120]
[343295583,1732549840035,-434.06,0.00042891,30]
[343295585,1732549840045,-765.65,0.00042891,30]
[343295587,1732549840055,-765.65,0.00042891,30]
[343295589,1732549840065,-434.06,0.00042891,30]
[343295591,1732549840074,-765.65,0.00042891,30]
[343295593,1732549840083,-430.41,0.00042891,30]
[343295595,1732549840092,-765.65,0.00042891,30]
[343295597,1732549840102,-275427.759428,0.00042898,10]
[343295600,1732549840115,-963.95960454,0.00042898,10]
[343295608,1732549840183,-22709.61538632,0.00042898,10]
[343295662,1732549840695,-150.0,0.00041151,2]
[343295664,1732549840709,-150.0,0.00041209,2]
[343295666,1732549840718,-150.0,0.00041308,2]
[343295668,1732549840728,-150.0,0.0004142,2]
[343295670,1732549840737,-150.0,0.00041581,2]
[343295672,1732549840747,-150.0,0.00041831,2]
[343295674,1732549840756,-150.0,0.00042828,2]
[343295676,1732549840765,-73019.27584104,0.00042898,10]
[343295679,1732549840777,-258.82613046,0.00042898,10]
[343295681,1732549840788,-320.49770679,0.00042898,10]
[343295683,1732549840799,-2550.30073507,0.00042898,10]
[343295685,1732549840809,-2083.45859017,0.00042898,10]
[343295688,1732549840820,-367.19999995,0.00042898,10]
[343295690,1732549840831,-1545.171603,0.00042898,10]
[343295697,1732549840890,150.0,0.00027,120]
[343295699,1732549840906,-150.0,0.0004284,2]
[343295701,1732549840915,-2031408.06052048,0.00042898,10]
[343295703,1732549840928,-40666.82962671,0.00042898,19]
[343295705,1732549840938,-25882.00716746,0.00042898,14]
[343295707,1732549840950,-482.15049894,0.00042898,120]
[343295709,1732549840959,-814.85,0.00042898,120]
[343295711,1732549840975,-600694.7638,0.00042899,2]
[343295713,1732549840986,-151.0,0.00042899,14]
[343295715,1732549840995,-151.0,0.00042899,14]
[343295717,1732549841006,-151.0,0.00042899,14]
[343295719,1732549841015,-151.0,0.00042899,14]
[343295721,1732549841024,-151.0,0.00042899,14]
[343295723,1732549841033,-151.0,0.00042899,14]
[343295725,1732549841043,-151.0,0.00042899,14]
[343295727,1732549841052,-151.0,0.00042899,14]
[343295729,1732549841061,-151.0,0.00042899,14]
[343295731,1732549841071,-151.0,0.00042899,14]
[343295732,1732549841080,-151.0,0.00042899,14]
[343295734,1732549841090,-151.0,0.00042899,14]
[343295736,1732549841104,-151.0,0.00042899,14]
[343295737,1732549841113,-628.761076,0.00042899,14]
[343295738,1732549841123,-4900.0,0.000429,15]
[343295739,1732549841132,-250000.0,0.000429,2]
[343295740,1732549841141,-1742.0,0.000429,7]
[343295741,1732549841151,-500.0,0.00042917,2]
[343295742,1732549841160,-150.0,0.00042955,2]
[343295743,1732549841170,-1600.0,0.0004296,2]
[343295744,1732549841179,-317.36552004,0.00042961,2]
[343295746,1732549841188,-154.1,0.0004297,2]
[343295748,1732549841200,-154.1,0.0004297,2]
[343295750,1732549841211,-154.1,0.0004297,2]
[343295752,1732549841220,-154.1,0.0004297,2]
[343295755,1732549841229,-154.1,0.0004297,2]
[343295756,1732549841238,-500.0,0.00042973,10]
[343295758,1732549841248,-500.0,0.00042973,10]
[343295761,1732549841257,-243.6367251,0.00042973,10]
[343295763,1732549841266,-1203377.6342958,0.0004298,15]
[343295765,1732549841276,-157.379021,0.0004298,14]
[343295767,1732549841286,-151.0,0.0004298,14]
[343295768,1732549841296,-151.0,0.0004298,14]
[343295771,1732549841305,-151.0,0.0004298,14]
[343295773,1732549841315,-908.395234,0.0004298,14]
[343295775,1732549841324,-151.0,0.0004298,14]
[343295777,1732549841334,-151.0,0.0004298,14]
[343295779,1732549841343,-152.060039,0.0004298,14]
[343295781,1732549841352,-151.0,0.0004298,14]
[343295783,1732549841362,-151.0,0.0004298,14]
[343295785,1732549841371,-151.0,0.0004298,14]
[343295787,1732549841380,-151.0,0.0004298,14]
[343295789,1732549841390,-151.0,0.0004298,14]
[343295791,1732549841399,-151.0,0.0004298,14]
[343295793,1732549841409,-151.0,0.0004298,14]
[343295795,1732549841419,-10000.0,0.0004298,14]
[343295797,1732549841428,-151.0,0.0004298,14]
[343295799,1732549841437,-10000.0,0.0004298,14]
[343295801,1732549841450,-151.0,0.0004298,14]
[343295803,1732549841460,-10000.0,0.0004298,14]
[343295820,1732549841606,-151.0,0.0004298,14]
[343295822,1732549841616,-151.0,0.0004298,14]
[343295824,1732549841626,-151.0,0.0004298,14]
[343295826,1732549841636,-151.0,0.0004298,14]
[343295828,1732549841645,-151.0,0.0004298,14]
[343295830,1732549841654,-151.0,0.0004298,14]
[343295832,1732549841664,-151.0,0.0004298,14]
[343295834,1732549841673,-151.0,0.0004298,14]
[343295836,1732549841682,-151.0,0.0004298,14]
[343295838,1732549841692,-151.0,0.0004298,7]
[343295840,1732549841703,-151.0,0.0004298,14]
[343295842,1732549841713,-151.0,0.0004298,14]
[343295844,1732549841722,-151.0,0.0004298,14]
[343295846,1732549841732,-151.0,0.0004298,14]
[343295848,1732549841742,-151.0,0.0004298,14]
[343295850,1732549841752,-151.0,0.0004298,14]
[343295852,1732549841761,-151.0,0.0004298,14]
[343295854,1732549841770,-151.0,0.0004298,14]
[343295856,1732549841780,-154.307722,0.0004298,14]
[343295858,1732549841789,-151.0,0.0004298,14]
[343295860,1732549841799,-151.0,0.0004298,14]
[343295862,1732549841809,-151.0,0.0004298,14]
[343295864,1732549841819,-151.0,0.0004298,14]
[343295866,1732549841829,-151.0,0.0004298,14]
[343295868,1732549841838,-151.0,0.0004298,14]
[343295870,1732549841847,-628.761076,0.0004298,14]
[343295872,1732549841856,-100000.0,0.00043,4]
[343295874,1732549841865,-13209.39832528,0.00043,120]
[343295876,1732549841875,-2016.44,0.00043,30]
[343295878,1732549841885,-2000.0,0.00043,7]
[343295880,1732549841894,-200.0,0.00043,7]
[343295882,1732549841904,-550.0,0.00043,2]
[343295884,1732549841913,-2000.0,0.00043,7]
[343295886,1732549841924,-200.0,0.00043,7]
[343295888,1732549841936,-2000.0,0.00043,7]
[343295890,1732549841945,-200.0,0.00043,7]
[343295892,1732549841957,-200.0,0.00043,7]
[343295894,1732549841966,-639.14,0.00043008,2]
[343295896,1732549841977,-187.47,0.00043014,120]
[343295898,1732549841987,-3866.5572953,0.00043021,2]
[343295900,1732549841996,-12519.9775099,0.00043021,2]
[343295902,1732549842007,-4824.7310217,0.00043021,2]
[343295904,1732549842016,-8016.0930814,0.00043021,2]
[343295906,1732549842026,-29345.53616,0.00043021,2]
[343295908,1732549842035,-324.224,0.0004305,2]
[343295910,1732549842045,-330.0894,0.0004305,2]
[343295912,1732549842054,-150.0,0.00043056,2]
[343295914,1732549842064,-150.0,0.00043068,2]
[343295916,1732549842073,-150.0,0.00043071,2]
[343295918,1732549842083,-150.0,0.0004309,2]
[343295920,1732549842094,-150.0,0.000431,2]
[343295922,1732549842106,-727.0,0.000431,30]
[343295924,1732549842115,-1000.0,0.000431,30]
[343295926,1732549842125,-172.00753208,0.000431,17]
[343295927,1732549842135,-229.0,0.000431,30]
[343295929,1732549842144,-1000.0,0.00043128,2]
[343295931,1732549842153,-150.0,0.00043136,2]
[343295932,1732549842163,-2092.35,0.0004315,120]
[343295934,1732549842172,-2092.35,0.0004315,120]
[343295936,1732549842182,-2092.35,0.0004315,120]
[343295938,1732549842191,-2092.35,0.0004315,120]
[343295940,1732549842203,-2092.35,0.0004315,120]
[343295941,1732549842212,-2092.35,0.0004315,120]
[343295943,1732549842221,-2092.35,0.0004315,120]
[343295945,1732549842231,-2092.35,0.0004315,120]
[343295947,1732549842241,-2092.35,0.0004315,120]
[343295948,1732549842251,-2092.35,0.0004315,120]
[343295950,1732549842261,-2092.35,0.0004315,120]
[343295952,1732549842271,-2092.35,0.0004315,120]
[343295954,1732549842280,-2092.35,0.0004315,120]
[343295955,1732549842290,-2092.35,0.0004315,120]
[343295957,1732549842300,-2092.35,0.0004315,120]
[343295959,1732549842309,-2092.35,0.0004315,120]
[343295961,1732549842318,-2092.35,0.0004315,120]
[343295962,1732549842327,-2092.35,0.0004315,120]
[343295964,1732549842336,-2092.35,0.0004315,120]
[343295966,1732549842346,-2092.35,0.0004315,120]
[343295968,1732549842355,-2092.35,0.0004315,120]
[343295970,1732549842364,-2092.35,0.0004315,120]
[343295971,1732549842374,-2092.35,0.0004315,120]
[343295973,1732549842383,-2092.49367781,0.0004315,120]
[343295975,1732549842393,-150.0,0.0004318,2]
[343295977,1732549842403,-150.0,0.00043183,2]
[343295979,1732549842412,-150.0,0.00043225,2]
[343295981,1732549842423,-8960.95054191,0.00043228,30]
[343295982,1732549842432,-150.0,0.00043234,2]
[343295984,1732549842443,-150.0,0.00043235,2]
[343295986,1732549842454,-150.0,0.0004325,2]
[343295988,1732549842464,-150.0,0.00043252,2]
[343295990,1732549842474,-150.0,0.00043262,2]
[343295991,1732549842483,-150.0,0.00043267,2]
[343295993,1732549842492,-150.0,0.00043282,2]
[343295995,1732549842501,-150.0,0.00043293,2]
[343295996,1732549842511,-159.98701408,0.00043295,28]
[343295998,1732549842521,-814.85,0.00043309,120]
[343296000,1732549842531,-151.0,0.00043315,120]
[343296002,1732549842541,-150.0,0.00043322,2]
[343296004,1732549842551,-150.0,0.00043322,2]
[343296006,1732549842560,-166.39,0.00043324,2]
[343296008,1732549842570,-700.0,0.00043331,60]
[343296009,1732549842580,-800.0,0.00043331,60]
[343296011,1732549842590,-500.0,0.00043331,60]
[343296013,1732549842599,-150.0,0.00043342,2]
[343296015,1732549842609,-1500.0,0.00043344,7]
[343296016,1732549842619,-2000.0,0.00043349,120]
[343296018,1732549842629,-150.0,0.00043369,2]
[343296020,1732549842639,-151.0,0.0004337,120]
[343296022,1732549842649,-1257.0,0.00043371,2]
[343296024,1732549842658,-565.0,0.00043371,2]
[343296026,1732549842668,-1625.179,0.00043371,2]
[343296027,1732549842677,-632.572,0.00043371,2]
[343296029,1732549842687,-150.0,0.00043371,2]
[343296031,1732549842698,-561.0,0.00043371,2]
[343296033,1732549842711,-1930.0,0.00043371,2]
[343296035,1732549842720,-1262.0,0.00043371,2]
[343296037,1732549842729,-816.0,0.00043371,2]
[343296039,1732549842739,-3753.0,0.00043371,2]
[343296040,1732549842749,-980.0,0.00043371,2]
[343296042,1732549842759,-3519.0,0.00043371,2]
[343296044,1732549842769,-5944.0,0.00043371,2]
[343296046,1732549842779,-226.0,0.00043371,2]
[343296048,1732549842788,-166.0,0.00043371,2]
[343296051,1732549842798,-1161.0,0.00043371,2]
[343296054,1732549842807,-157.0,0.00043371,2]
[343296057,1732549842817,-152.958,0.00043371,2]
[343296059,1732549842826,-13666.0,0.00043371,2]
[343296062,1732549842836,-150.0,0.00043371,2]
[343296064,1732549842845,-728.023,0.00043371,2]
[343296066,1732549842855,-192.56108824,0.00043376,18]
[343296068,1732549842864,-154.1,0.00043415,2]
[343296070,1732549842873,-502.52360902,0.00043421,10]
[343296071,1732549842883,-150.0,0.00043423,7]
[343296073,1732549842893,-1494.99913169,0.00043425,7]
[343296075,1732549842902,-703.3674772,0.0004343,7]
[343296077,1732549842911,-200.0,0.0004343,7]
[343296079,1732549842921,-2000.0,0.0004343,7]
[343296081,1732549842935,-200.0,0.0004343,7]
[343296083,1732549842944,-1528.09815968,0.0004343,7]